fUSD/lending_fUSD_20260107
["ID","MTS","AMOUNT","RATE_DAILY","PERIOD"]
[400657487,1767771045067,-44950.0,0.00018,2]
[400657514,1767771045664,-247.21882098,0.00016797,2]
[400657515,1767771045674,-3396.7897522,0.00018,2]
[400657516,1767771045832,-975.84180951,0.00018,2]
[400657517,1767771045998,-2458.572002,0.00018,2]
[400657542,1767771425029,500.0,0.00016284,2]
[400657551,1767771606778,-177.00021117,0.00016161,2]
[400657552,1767771703115,-336.55,0.00016021,2]
[400657553,1767771703147,-107.99978883,0.00016161,2]
[400657554,1767771737150,866.0,0.00016077,2]
[400657555,1767771756130,1852.42,0.0001598,2]
[400657559,1767771868389,460.0,0.00030127,120]
[400657560,1767771869253,460.0,0.00030127,120]
[400657561,1767771870312,460.0,0.00030127,120]
[400657562,1767771871073,460.0,0.00030127,120]
[400657563,1767771892442,1002.59215583,0.00032877,120]
[400657564,1767771895295,1108.0,0.0003287,120]
[400657565,1767771896104,419.0,0.0003287,120]
[400657566,1767771904175,351.0,0.00032351,120]
[400657570,1767771951219,150.0,0.00015895,2]
[400657571,1767771951422,150.0,0.00015895,120]
[400657572,1767771954483,819.7790007,0.0003287,120]
[400657574,1767771982702,-200.0,0.00016161,2]
[400657575,1767771982726,-227.59193555,0.00016184,2]
[400657576,1767771982748,-74.68706717,0.00016206,2]
[400657587,1767772078346,701.0,0.00032713,120]
[400657588,1767772091168,500.0,0.00032877,120]
[400657590,1767772105551,500.0,0.00032877,120]
[400657592,1767772137517,160.0,0.000328,120]
[400657593,1767772143853,160.0,0.000328,120]
[400657594,1767772147818,160.0,0.000328,120]
[400657598,1767772204416,161.78,0.000328,120]
[400657599,1767772206779,175.0,0.00032819,120]
[400657600,1767772229148,1041.21,8.004e-05,2]
[400657601,1767772229369,1041.21,8.426e-05,2]
[400657603,1767772229573,1041.21,8.847e-05,2]
[400657604,1767772229770,1041.21,9.268e-05,2]
[400657605,1767772229967,1041.21,9.689e-05,2]
[400657606,1767772230167,152.71447715,0.00010111,2]
[400657607,1767772230197,888.49552285,0.00010111,2]
[400657608,1767772230398,1041.21,0.00010532,2]
[400657609,1767772230597,1041.21,0.00010953,2]
[400657610,1767772230793,1041.21,0.00011375,2]
[400657611,1767772231007,1041.21,0.00011796,2]
[400657612,1767772231238,1041.21,0.00012217,2]
[400657613,1767772231647,147.94489949,0.00012638,2]
[400657614,1767772231675,893.26510051,0.00012638,2]
[400657620,1767772231848,1041.21,0.0001306,2]
[400657621,1767772231944,-195.0,0.00016206,2]
[400657622,1767772231955,-209.53844161,0.00016206,2]
[400657623,1767772231966,-76.46155839,0.00016206,2]
[400657624,1767772231976,-250.0,0.00016228,2]
[400657625,1767772231986,-249.16029601,0.00016339,2]
[400657626,1767772231997,-46.27970399,0.00016339,2]
[400657627,1767772232007,-342.63074988,0.00016438,2]
[400657628,1767772232018,-446.99893371,0.00016438,2]
[400657629,1767772232035,-1756.82031641,0.00016438,2]
[400657630,1767772232044,-500.0,0.00016542,2]
[400657631,1767772232053,-74464.9939059,0.00016596,2]
[400657632,1767772232065,-11635.06648197,0.00016596,2]
[400657633,1767772232097,1041.21,0.00013481,2]
[400657634,1767772232110,-612.35383556,0.00016596,2]
[400657635,1767772232125,-462.11065713,0.00016596,2]
[400657636,1767772232137,-389.25273589,0.00016596,2]
[400657639,1767772232231,1041.21,0.00013902,2]
[400657640,1767772233478,1041.21,0.00014324,2]
[400657641,1767772233534,1041.21,0.00014745,2]
[400657642,1767772233574,1041.21,0.00015166,2]
[400657643,1767772233614,1041.21,0.00015587,2]
[400657644,1767772233671,1041.21,0.00016009,2]
[400657648,1767772238018,-912436.22238355,0.00016596,2]
[400657649,1767772238029,-1200.0,0.00016694,2]
[400657650,1767772238039,-300.0,0.00016694,2]
[400657651,1767772238049,-300.0,0.00016694,2]
[400657652,1767772238059,-2500.0,0.00016695,2]
[400657653,1767772238070,-12433.65042466,0.00016695,2]
[400657654,1767772238079,-260.0,0.00016695,2]
[400657655,1767772238089,-362.88199794,0.00016696,2]
[400657656,1767772238099,-1311.317,0.00016696,2]
[400657657,1767772238108,-167.079,0.00016696,2]
[400657658,1767772238118,-7158.2969368,0.00016696,2]
[400657659,1767772238128,-164.81254732,0.00016696,2]
[400657660,1767772238138,-165.33,0.00016712,2]
[400657661,1767772238147,-1002.29010168,0.00016761,2]
[400657662,1767772238156,-22616.09815957,0.00016762,2]
[400657663,1767772238166,-688.6,0.00016784,2]
[400657664,1767772238176,-218.65304711,0.00016784,2]
[400657665,1767772238186,-500.0,0.00016784,2]
[400657666,1767772238195,-151.0,0.00016784,2]
[400657667,1767772238205,-151.0,0.00016784,2]
[400657668,1767772238215,-151.0,0.00016784,2]
[400657669,1767772238225,-151.0,0.00016784,2]
[400657670,1767772238235,-151.0,0.00016784,2]
[400657671,1767772238245,-289.99586171,0.00016784,2]
[400657672,1767772238260,-151.0,0.00016784,2]
[400657673,1767772238270,-151.0,0.00016784,2]
[400657674,1767772238279,-151.0,0.00016784,2]
[400657675,1767772238291,-151.0,0.00016784,2]
[400657676,1767772238301,-200.0,0.00016784,2]
[400657677,1767772238310,-151.0,0.00016784,2]
[400657678,1767772238320,-151.0,0.00016784,2]
[400657679,1767772238332,-151.0,0.00016784,2]
[400657680,1767772238341,-200.0,0.00016784,2]
[400657681,1767772238352,-151.0,0.00016784,2]
[400657682,1767772238362,-151.0,0.00016784,2]
[400657684,1767772238372,-151.0,0.00016784,2]
[400657686,1767772238382,-151.0,0.00016784,2]
[400657688,1767772238393,-500.0,0.00016794,2]
[400657690,1767772238405,-500.0,0.00016794,2]
[400657692,1767772238418,-500.0,0.00016794,2]
[400657694,1767772238428,-259.3286244,0.00016794,2]
[400657696,1767772238438,-500.0,0.00016794,2]
[400657698,1767772238453,-500.0,0.00016794,2]
[400657700,1767772238465,-500.0,0.00016794,2]
[400657702,1767772238475,-500.0,0.00016794,2]
[400657704,1767772238485,-500.0,0.00016794,2]
[400657706,1767772238496,-500.0,0.00016794,2]
[400657708,1767772238505,-500.0,0.00016794,2]
[400657710,1767772238515,-500.0,0.00016794,2]
[400657712,1767772238525,-500.0,0.00016794,2]
[400657714,1767772238534,-500.0,0.00016794,2]
[400657716,1767772238544,-175.70475376,0.00016794,2]
[400657718,1767772238554,-500.0,0.00016794,2]
[400657720,1767772238564,-500.0,0.00016794,2]
[400657722,1767772238574,-500.0,0.00016794,2]
[400657725,1767772238583,-500.0,0.00016794,2]
[400657727,1767772238593,-500.0,0.00016794,2]
[400657729,1767772238603,-500.0,0.00016794,2]
[400657730,1767772238613,-500.0,0.00016794,2]
[400657733,1767772238623,-500.0,0.00016794,2]
[400657735,1767772238633,-500.0,0.00016794,2]
[400657737,1767772238643,-500.0,0.00016794,2]
[400657739,1767772238653,-500.0,0.00016794,2]
[400657740,1767772238662,-500.0,0.00016794,2]
[400657743,1767772238673,-500.0,0.00016794,2]
[400657745,1767772238682,-500.0,0.00016794,2]
[400657747,1767772238692,-500.0,0.00016794,2]
[400657749,1767772238706,-500.0,0.00016794,2]
[400657751,1767772238716,-500.0,0.00016794,2]
[400657753,1767772238726,-500.0,0.00016794,2]
[400657755,1767772238735,-500.0,0.00016794,2]
[400657757,1767772238745,-250.0,0.00016794,2]
[400657759,1767772238754,-596.72331593,0.00016794,5]
[400657761,1767772238764,-500.0,0.00016794,2]
[400657763,1767772238773,-500.0,0.00016794,2]
[400657765,1767772238783,-500.0,0.00016794,2]
[400657767,1767772238792,-500.0,0.00016794,2]
[400657769,1767772238802,-500.0,0.00016794,2]
[400657771,1767772238812,-500.0,0.00016794,2]
[400657773,1767772238821,-500.0,0.00016794,2]
[400657775,1767772238830,-492.25410514,0.00016794,2]
[400657777,1767772238839,-221.0,0.00016794,2]
[400657779,1767772238849,-420.4969783,0.00016794,2]
[400657781,1767772238858,-5512.746,0.00016796,2]
[400657783,1767772238868,-1000.0,0.00016796,2]
[400657785,1767772238877,-500.0,0.00016796,2]
[400657787,1767772238886,-50399.87194299,0.000168,2]
[400657789,1767772238910,-14940.69395311,0.000168,2]
[400657791,1767772238928,-166.66,0.0001681,2]
[400657793,1767772238938,-500.0,0.00016895,2]
[400657795,1767772238947,-500.0,0.00016895,2]
[400657797,1767772238957,-531.52006841,0.00016895,2]
[400657799,1767772238966,-527.24343499,0.00016895,2]
[400657801,1767772238979,-515.08412896,0.00016895,2]
[400657803,1767772238988,-508.16431547,0.00016895,2]
[400657805,1767772238999,-508.77600646,0.00016895,2]
[400657807,1767772239009,-500.0,0.00016895,2]
[400657809,1767772239018,-512.52633947,0.00016895,2]
[400657811,1767772239028,-523.03584053,0.00016895,2]
[400657813,1767772239038,-500.0,0.00016895,2]
[400657845,1767772239355,-500.0,0.00016895,2]
[400657849,1767772239388,-500.0,0.00016895,2]
[400657851,1767772239398,-500.0,0.00016895,2]
[400657853,1767772239408,-500.0,0.00016895,2]
[400657855,1767772239417,-461.49248906,0.00016895,2]
[400657857,1767772239427,-500.0,0.00016895,2]
[400657859,1767772239436,-502.28702111,0.00016895,2]
[400657861,1767772239446,-7158.2969368,0.00016896,2]
[400657863,1767772239455,-183.51,0.00016958,2]
[400657865,1767772239464,-151.0,0.00016965,2]
[400657867,1767772239474,-151.0,0.00016965,2]
[400657869,1767772239483,-151.0,0.00016968,2]
[400657871,1767772239492,-151.0,0.00016968,2]
[400657873,1767772239502,-151.0,0.00016969,2]
[400657875,1767772239512,-151.0,0.00016969,2]
[400657877,1767772239522,-250.0,0.00017,2]
[400657879,1767772239532,-688.6,0.00017058,2]
[400657882,1767772239541,-500.0,0.0001707,2]
[400657883,1767772239551,-7158.2969368,0.00017097,2]
[400657886,1767772239560,-7158.2969368,0.00017297,2]
[400657888,1767772239570,-164.8125473,0.00017298,2]
[400657890,1767772239580,-688.6,0.00017332,2]
[400657891,1767772239590,-500.0,0.00017332,2]
[400657894,1767772239600,-200.0,0.00017332,2]
[400657896,1767772239610,-256.57914567,0.00017332,2]
[400657897,1767772239619,-7158.2969368,0.00017497,2]
[400657899,1767772239630,-688.6,0.00017606,2]
[400657902,1767772239640,-7158.2969368,0.00017698,2]
[400657904,1767772239650,-300.0,0.00017778,2]
[400657905,1767772239659,-5000.0,0.00017778,2]
[400657906,1767772239669,-1969.66451728,0.00017778,2]
[400657907,1767772239678,-600.0,0.00017778,2]
[400657908,1767772239687,-600.0,0.00017778,2]
[400657909,1767772239696,-376.22104568,0.00017778,2]
[400657910,1767772239705,-193.0,0.00017778,2]
[400657911,1767772239714,-303.57738446,0.00017778,2]
[400657912,1767772239723,-250.0,0.00017826,2]
[400657913,1767772239732,-250.0,0.00017826,2]
[400657914,1767772239741,-600.0,0.00017826,2]
[400657915,1767772239751,-300.0,0.00017826,2]
[400657916,1767772239760,-2500.0,0.00017826,2]
[400657917,1767772239769,-195.0,0.00017826,2]
[400657918,1767772239778,-999.0,0.00017853,3]
[400657919,1767772239788,-688.6,0.0001788,2]
[400657921,1767772239797,-500.0,0.0001788,2]
[400657923,1767772239807,-200.0,0.0001788,2]
[400657925,1767772239816,-7158.2969368,0.00017898,2]
[400657927,1767772239826,-10000.0,0.000179,2]
[400657929,1767772239835,-724.50586441,0.000179,2]
[400657931,1767772239844,-161.0,0.000179,2]
[400657933,1767772239853,-492.10858122,0.000179,2]
[400657935,1767772239863,-164.8125473,0.000179,2]
[400657937,1767772239872,-2635.79412455,0.000179,2]
[400657939,1767772239881,-251.0762993,0.00017936,2]
[400657941,1767772239891,-500.0,0.00017938,2]
[400657943,1767772239900,-310.0,0.00017973,2]
[400657945,1767772239909,-500.0,0.00017973,2]
[400657947,1767772239918,-500.0,0.00017973,2]
[400657949,1767772239928,-500.0,0.00017973,2]
[400657951,1767772239937,-500.0,0.00017973,2]
[400657953,1767772239946,-500.0,0.00017973,2]
[400657955,1767772239955,-552.50710843,0.00017973,2]
[400657957,1767772239964,-500.0,0.00017973,2]
[400657959,1767772239973,-500.0,0.00017973,2]
[400657961,1767772239983,-500.0,0.00017973,2]
[400657963,1767772239992,-500.0,0.00017973,2]
[400657965,1767772240001,-500.0,0.00017973,2]
[400657967,1767772240011,-500.0,0.00017973,2]
[400657969,1767772240020,-500.0,0.00017973,2]
[400657971,1767772240030,-500.0,0.00017982,2]
[400657973,1767772240039,-500.0,0.00017999,2]
[400657975,1767772240048,-500.0,0.00017999,2]
[400657977,1767772240057,-500.0,0.00017999,2]
[400657978,1767772240066,-543.84382097,0.00017999,2]
[400657980,1767772240075,-300.0,0.00017999,2]
[400657983,1767772240085,-666.0,0.00017999,2]
[400657984,1767772240094,-315.65414997,0.00017999,2]
[400657986,1767772240104,-351.33633701,0.00017999,2]
[400657988,1767772240113,-500.0,0.00017999,2]
[400657990,1767772240123,-500.0,0.00017999,2]
[400657992,1767772240132,-410.86468938,0.00017999,2]
[400657995,1767772240141,-3733341.18453334,0.00018,2]
[400657997,1767772240151,-15752.546343,0.00018,2]
[400657999,1767772240160,-100469.2351603,0.00018,2]
[400658001,1767772240169,-7158.2969368,0.00018098,2]
[400658003,1767772240182,-688.6,0.00018154,2]
[400658005,1767772240191,-420.0,0.00018239,2]
[400658007,1767772240201,-420.0,0.00018239,2]
[400658009,1767772240210,-7158.2969368,0.00018299,2]
[400658011,1767772240221,-1680.0,0.0001833,2]
[400658013,1767772240230,-688.6,0.00018428,2]
[400658015,1767772240239,-507.24437784,0.00018428,2]
[400658017,1767772240251,-200.0,0.00018428,2]
[400658019,1767772240261,-7158.2969368,0.00018499,2]
[400658021,1767772240270,-500.0,0.00018521,2]
[400658023,1767772240279,-1000.0,0.00018521,2]
[400658025,1767772240289,-1000.0,0.00018521,2]
[400658026,1767772240298,-738.16298262,0.00018599,2]
[400658028,1767772240308,-158.0,0.00018599,2]
[400658030,1767772240317,-297.88460634,0.00018599,2]
[400658033,1767772240328,-158.0,0.00018599,2]
[400658035,1767772240337,-152.0,0.00018599,2]
[400658036,1767772240347,-162.89403205,0.00018599,2]
[400658039,1767772240356,-152.0,0.00018599,2]
[400658040,1767772240365,-152.0,0.00018599,2]
[400658043,1767772240375,-152.0,0.00018599,2]
[400658045,1767772240384,-151.0,0.00018599,2]
[400658047,1767772240393,-152.0,0.00018599,2]
[400658049,1767772240403,-151.0,0.00018599,2]
[400658051,1767772240412,-152.0,0.00018599,2]
[400658053,1767772240421,-157.0,0.00018599,2]
[400658055,1767772240432,-152.0,0.00018599,2]
[400658057,1767772240441,-155.24514317,0.00018599,2]
[400658058,1767772240450,-688.6,0.00018702,2]
[400658060,1767772240459,-151.55,0.000188,2]
[400658063,1767772240469,-151.55,0.000188,2]
[400658064,1767772240478,-190.5,0.00018959,2]
[400658066,1767772240487,-200.0,0.00018976,2]
[400658068,1767772240497,-491.22454422,0.00019,2]
[400658070,1767772240507,-36269.99358277,0.00019,2]
[400658072,1767772240517,-4865.62392631,0.00019,2]
[400658074,1767772240526,-357.62033984,0.0001901,7]
[400658076,1767772240536,-1500.0,0.00019068,2]
[400658078,1767772240545,-996.61558298,0.00019068,2]
[400658080,1767772240555,-382.52,0.00019339,2]
[400658082,1767772240564,-204.59417983,0.00019524,2]
[400658085,1767772240573,-2000.0,0.00019616,2]
[400658086,1767772240586,-4913.71415533,0.000199,3]
[400658088,1767772240595,-587.0,0.00019927,2]
[400658090,1767772240604,-2212.14447453,0.0001995,15]
[400658093,1767772240614,-273.37639111,0.00019973,2]
[400658095,1767772240624,-500.0,0.00019973,2]
[400658097,1767772240633,-219.69716765,0.00019973,2]
[400658098,1767772240642,-500.0,0.00019973,2]
[400658101,1767772240652,-500.0,0.00019973,2]
[400658102,1767772240662,-500.0,0.00019973,2]
[400658104,1767772240672,-500.0,0.00019973,2]
[400658107,1767772240681,-500.0,0.00019973,2]
[400658109,1767772240691,-500.0,0.00019973,2]
[400658111,1767772240701,-300.0,0.00019999,2]
[400658113,1767772240710,-666.0,0.00019999,2]
[400658115,1767772240719,-10898.38005123,0.0002,2]
[400658116,1767772240729,-1530.76771487,0.0002,2]
[400658118,1767772240738,-25552.78165952,0.0002,2]
[400658121,1767772240748,-758.83798412,0.0002,5]
[400658123,1767772240757,-3088.33,0.0002,2]
[400658125,1767772240767,-3950.0,0.0002,2]
[400658127,1767772240780,-73865.50279952,0.0002,10]
[400658129,1767772240790,-7277.50758892,0.0002,2]
[400658131,1767772240799,-1292.44202786,0.0002,2]
[400658133,1767772240808,-1043.27132118,0.0002,2]
[400658135,1767772240818,-2858.99282028,0.0002,2]
[400658137,1767772240827,-12903.10015762,0.0002,2]
[400658139,1767772240836,-8720.0,0.0002001,2]
[400658141,1767772240845,-2351.0,0.00020126,2]
[400658143,1767772240854,-2500.0,0.00020164,2]
[400658145,1767772240864,-341.12276344,0.0002021,2]
[400658147,1767772240873,-22417.7165313,0.00020301,2]
[400658149,1767772240882,-500.0,0.00020411,2]
[400658151,1767772240891,-154.96,0.000205,7]
[400658153,1767772240900,-1000.0,0.00020521,2]
[400658155,1767772240909,-1000.0,0.00020521,2]
[400658157,1767772240918,-500.0,0.00020521,2]
[400658159,1767772240927,-22619.02724572,0.000207,2]
[400658161,1767772240937,-3000.0,0.00020712,2]
[400658163,1767772240947,-5002.0686797,0.00020815,2]
[400658165,1767772240956,-51873.58313577,0.000209,30]
[400658167,1767772240965,-2000.0,0.000209,30]
[400658169,1767772240974,-1771.0,0.000209,30]
[400658171,1767772240983,-8893.68820739,0.0002099,2]
[400658173,1767772240993,-1005.17487026,0.00021,2]
[400658175,1767772241002,-1500.0,0.00021068,2]
[400658177,1767772241011,-509.85151383,0.00021068,2]
[400658179,1767772241020,-362.88199793,0.00021146,2]
[400658181,1767772241029,-3514.8681882,0.00021222,2]
[400658183,1767772241039,-3500.0,0.0002126,2]
[400658185,1767772241048,-2003.18143071,0.00021616,2]
[400658187,1767772241057,-313.0,0.00021771,2]
[400658189,1767772241066,-4000.0,0.00021808,2]
[400658191,1767772241075,-164.0,0.00021918,2]
[400658193,1767772241085,-164.0,0.00021918,2]
[400658195,1767772241094,-164.0,0.00021918,2]
[400658197,1767772241103,-164.0,0.00021918,2]
[400658199,1767772241113,-154.0,0.00021918,2]
[400658201,1767772241122,-154.0,0.00021918,2]
[400658203,1767772241131,-158.65429393,0.00021918,2]
[400658205,1767772241140,-154.0,0.00021918,2]
[400658207,1767772241150,-154.0,0.00021918,2]
[400658209,1767772241159,-154.0,0.00021918,2]
[400658211,1767772241168,-154.0,0.00021918,2]
[400658213,1767772241177,-154.0,0.00021918,2]
[400658215,1767772241187,-154.0,0.00021918,2]
[400658217,1767772241196,-154.0,0.00021918,2]
[400658219,1767772241205,-154.0,0.00021918,2]
[400658221,1767772241215,-154.0,0.00021918,2]
[400658223,1767772241224,-154.0,0.00021918,2]
[400658225,1767772241234,-154.0,0.00021918,2]
[400658227,1767772241243,-154.0,0.00021918,2]
[400658229,1767772241256,-154.0,0.00021918,2]
[400658231,1767772241265,-154.0,0.00021918,2]
[400658233,1767772241274,-299.68684401,0.00021918,2]
[400658235,1767772241284,-784.2731017,0.00021941,2]
[400658237,1767772241294,-175.6,0.00022,7]
[400658239,1767772241304,-417.77,0.00022,2]
[400658241,1767772241314,-835.0,0.00022099,2]
[400658243,1767772241325,-2941.3835048,0.00022356,2]
[400658245,1767772241334,-356.57373325,0.00022599,2]
[400658247,1767772241343,-336.0928788,0.000226,2]
[400658249,1767772241353,-2635.79412451,0.000227,2]
[400658251,1767772241362,-500.0,0.00023636,2]
[400658253,1767772241371,-500.14706177,0.00024,2]
[400658255,1767772241380,-1000.0,0.00024658,2]
[400658257,1767772241390,-187.16,0.00024658,2]
[400658259,1767772241399,-2943.0,0.00025227,2]
[400658261,1767772241408,-362.88199793,0.00025596,2]
[400658263,1767772241418,-163.18445166,0.00026474,2]
[400658265,1767772241427,-150.99,0.00026591,2]
[400658267,1767772241436,-16137.17,0.00026591,2]
[400658269,1767772241446,-151.59358085,0.00027369,2]
[400658271,1767772241456,-455.0,0.00027397,4]
[400658273,1767772241465,-437.4,0.00027397,6]
[400658275,1767772241475,-304.0,0.00027397,2]
[400658277,1767772241484,-418.6,0.00027397,7]
[400658279,1767772241493,-450.26,0.00027397,30]
[400658281,1767772241503,-500.0,0.00027397,20]
[400658283,1767772241512,-150.0,0.00027397,5]
[400658285,1767772241522,-417.77,0.000274,2]
[400658287,1767772241532,-2635.79412451,0.000275,2]
[400658289,1767772241542,-3240.0,0.00027587,2]
[400658291,1767772241551,-250.0,0.00027945,5]
[400658293,1767772241561,-1000.0,0.0002837,2]
[400658295,1767772241570,-350.0,0.00028493,5]
[400658297,1767772241580,-200.0,0.00028758,2]
[400658299,1767772241590,-450.0,0.00029041,5]
[400658301,1767772241600,-552.18978068,0.00029589,5]
[400658303,1767772241610,-1405.0,0.00029666,2]
[400658305,1767772241620,-1330.0,0.00029666,2]
[400658307,1767772241629,-614.0,0.00029666,2]
[400658309,1767772241638,-3467.0,0.00029666,2]
[400658311,1767772241648,-1266.0,0.00029666,2]
[400658313,1767772241657,-505.0,0.00029666,2]
[400658315,1767772241667,-1201.0,0.00029666,2]
[400658317,1767772241676,-150.0,0.00029666,2]
[400658319,1767772241685,-4818.0,0.00029666,2]
[400658321,1767772241695,-568.55,0.00029666,2]
[400658323,1767772241704,-2436.0,0.00029666,2]
[400658325,1767772241714,-464.9,0.000298,14]
[400658327,1767772241723,-362.88199793,0.00030046,2]
[400658329,1767772241733,-417.77,0.000301,2]
[400658331,1767772241743,-168.0,0.00030146,2]
[400658333,1767772241752,-978.0,0.000303,2]
[400658335,1767772241762,-213.17,0.00030302,2]
[400658337,1767772241771,-5000.0,0.00030491,2]
[400658339,1767772241780,-588.82,0.00030611,2]
[400658340,1767772241789,-5005.76233133,0.0003065,2]
[400658342,1767772241798,-724.50586439,0.0003065,2]
[400658344,1767772241807,-492.10858122,0.0003065,2]
[400658346,1767772241816,-482.63,0.00031014,2]
[400658348,1767772241825,-450.26,0.00031723,30]
[400658350,1767772241834,-1145.67707268,0.00032213,5]
[400658352,1767772241843,-1118.9849658,0.00032213,5]
[400658354,1767772241852,-1328.86530979,0.00032213,5]
[400658356,1767772241862,-2635.79412451,0.000323,2]
[400658358,1767772241873,-179.04,0.00032486,2]
[400658360,1767772241882,-1405.0,0.00032666,2]
[400658362,1767772241892,-1330.0,0.00032666,2]
[400658364,1767772241901,-614.0,0.00032666,2]
[400658366,1767772241911,-3467.0,0.00032666,2]
[400658368,1767772241920,-1266.0,0.00032666,2]
[400658370,1767772241930,-505.0,0.00032666,2]
[400658372,1767772241939,-1201.0,0.00032666,2]
[400658374,1767772241950,-150.0,0.00032666,2]
[400658376,1767772241959,-4818.0,0.00032666,2]
[400658378,1767772241968,-565.0,0.00032666,2]
[400658380,1767772241978,-2436.0,0.00032666,2]
[400658382,1767772241987,-417.77,0.000328,2]
[400658384,1767772241996,-369.0,0.00032877,120]
[400658386,1767772242006,-456.05,0.000329,2]
[400658388,1767772242015,-173.46,0.00033,14]
[400658390,1767772242025,-37345.71882247,0.00033,2]
[400658392,1767772242034,-151.0,0.00033,2]
[400658394,1767772242044,-151.0,0.00033,2]
[400658396,1767772242054,-151.0,0.00033,2]
[400658398,1767772242063,-155.298096,0.00033,31]
[400658400,1767772242072,-556.08,0.00033308,2]
[400658402,1767772242082,-351.0,0.00033968,120]
[400658404,1767772242091,-1000.0,0.000343,7]
[400658406,1767772242101,-175.0,0.0003446,120]
[400658408,1767772242111,-362.88199793,0.00034495,2]
[400658410,1767772242121,-682.5,0.00035616,15]
[400658412,1767772242130,-656.1,0.00035616,37]
[400658414,1767772242139,-456.0,0.00035616,40]
[400658416,1767772242149,-627.9,0.00035616,50]
[400658418,1767772242159,-174.65326745,0.00035616,7]
[400658420,1767772242168,-203.245294,0.00035666,31]
[400658422,1767772242178,-1405.0,0.00035666,2]
[400658424,1767772242187,-1330.0,0.00035666,2]
[400658426,1767772242196,-955.331456,0.00035666,31]
[400658427,1767772242205,-955.331456,0.00035666,31]
[400658429,1767772242215,-614.0,0.00035666,2]
[400658431,1767772242224,-955.331456,0.00035666,31]
[400658434,1767772242233,-955.331456,0.00035666,31]
[400658435,1767772242242,-3467.0,0.00035666,2]
[400658437,1767772242255,-1266.0,0.00035666,2]
[400658439,1767772242264,-505.0,0.00035666,2]
[400658441,1767772242273,-1198.912,0.00035666,2]
[400658443,1767772242282,-151.0,0.00035666,31]
[400658445,1767772242293,-151.0,0.00035666,31]
[400658447,1767772242302,-151.0,0.00035666,31]
[400658449,1767772242312,-159.159047,0.00035666,31]
[400658451,1767772242321,-151.0,0.00035666,31]
[400658453,1767772242332,-151.0,0.00035666,31]
[400658455,1767772242342,-553.317148,0.00035666,15]
[400658457,1767772242352,-553.317148,0.00035666,15]
[400658459,1767772242361,-553.317148,0.00035666,15]
[400658461,1767772242371,-553.317148,0.00035666,15]
[400658463,1767772242380,-151.0,0.00035666,31]
[400658465,1767772242390,-4818.0,0.00035666,2]
[400658467,1767772242399,-565.0,0.00035666,2]
[400658469,1767772242409,-2436.0,0.00035666,2]
[400658471,1767772242419,-351.0,0.00035667,120]
[400658473,1767772242429,-456.05,0.000357,2]
[400658475,1767772242438,-466.43,0.00035767,2]
[400658477,1767772242447,-151.0,0.00036016,31]
[400658479,1767772242458,-151.0,0.00036016,31]
[400658481,1767772242467,-151.0,0.00036016,31]
[400658482,1767772242477,-251.210409,0.00036016,31]
[400658483,1767772242486,-151.0,0.00036016,30]
[400658484,1767772242496,-450.26,0.00036049,30]
[400658485,1767772242506,-852.7,0.00036054,4]